bitfinex/quotes_SOLUSD_20240530
["timestamp","ask_amount","ask_price","bid_price","bid_amount"]
[1717080445914,11.46871595,168.87,168.75,60.0]
[1717080446211,11.46871595,168.87,168.77,7.42]
[1717080446513,11.46871595,168.87,168.75,60.0]
[1717080446696,6.6481,168.87,168.79,67.42]
[1717080447006,6.6481,168.87,168.8,7.42]
[1717080447210,6.6481,168.87,168.77,60.0]
[1717080447211,6.6481,168.87,168.79,7.42]
[1717080447412,6.6481,168.87,168.78,7.42]
[1717080447604,6.6481,168.87,168.77,60.0]
[1717080447920,6.6481,168.87,168.77,67.42]
[1717080449024,6.6481,168.87,168.79,60.0]
[1717080449194,6.6481,168.87,168.79,7.42]
[1717080449394,6.6481,168.87,168.8,45.0]
[1717080450705,6.6481,168.87,168.78,7.42]
[1717080451415,6.6481,168.87,168.79,45.0]
[1717080452020,6.6481,168.87,168.78,45.0]
[1717080453035,6.6481,168.87,168.79,67.42]
[1717080453323,6.6481,168.87,168.8,45.0]
[1717080454127,6.6481,168.87,168.78,7.42]
[1717080454431,6.6481,168.87,168.79,45.0]
[1717080455129,6.6481,168.87,168.78,7.42]
[1717080455707,6.6481,168.87,168.77,60.0]
[1717080456724,6.6481,168.87,168.71,60.0]
[1717080456905,6.5327,168.85,168.71,60.0]
[1717080457112,6.5327,168.85,168.73,7.42]
[1717080457299,6.5327,168.85,168.71,60.0]
[1717080457499,45.0,168.84,168.73,7.42]
[1717080458922,45.0,168.84,168.71,60.0]
[1717080459120,45.0,168.84,168.72,7.42]
[1717080462313,45.0,168.84,168.73,7.42]
[1717080462934,6.5327,168.85,168.74,7.42]
[1717080463319,6.5327,168.85,168.75,45.0]
[1717080463828,6.5327,168.85,168.75,52.42]
[1717080464412,6.5327,168.85,168.77,7.42]
[1717080464735,6.5327,168.85,168.75,105.0]
[1717080465234,6.5327,168.85,168.75,107.1925]
[1717080465452,6.5327,168.85,168.75,105.0]
[1717080466129,6.5327,168.85,168.75,107.1924]
[1717080466335,6.5327,168.85,168.79,7.42]
[1717080466551,6.5327,168.85,168.78,7.42]
[1717080466712,6.5327,168.85,168.79,7.42]
[1717080466913,6.5327,168.85,168.78,7.42]
[1717080469542,6.5327,168.85,168.77,7.42]
[1717080470034,6.5327,168.85,168.75,105.0]
[1717080470230,6.5327,168.85,168.77,7.42]
[1717080471048,6.5327,168.85,168.75,52.42]
[1717080471332,6.5327,168.85,168.75,45.0]
[1717080471537,6.5327,168.85,168.74,52.42]
[1717080471918,6.5327,168.85,168.75,7.42]
[1717080474831,6.5327,168.85,168.76,7.42]
[1717080476042,6.5327,168.85,168.75,7.42]
[1717080477750,6.5327,168.85,168.76,7.42]
[1717080479034,6.5327,168.85,168.75,7.42]
[1717080480748,6.5327,168.85,168.74,45.0]
[1717080481042,17.29791611,168.88,168.7,60.0]
[1717080481043,6.1208,168.83,168.7,60.0]
[1717080481250,6.1208,168.83,168.72,7.42]
[1717080481451,6.1208,168.83,168.72,67.42]
[1717080482229,6.1208,168.83,168.73,7.42]
[1717080482728,6.1208,168.83,168.72,60.0]
[1717080482927,6.1208,168.83,168.73,7.42]
[1717080483652,6.1208,168.83,168.72,60.0]
[1717080483855,6.1208,168.83,168.72,67.42]
[1717080484154,6.1208,168.83,168.73,7.42]
[1717080487343,6.1208,168.83,168.72,60.0]
[1717080487535,6.1208,168.83,168.73,52.42]
[1717080487950,6.1208,168.83,168.73,45.0]
[1717080488259,6.1208,168.83,168.74,7.42]
[1717080488456,6.1208,168.83,168.74,67.42]
[1717080488662,6.1208,168.83,168.74,7.42]
[1717080491158,6.1208,168.83,168.73,45.0]
[1717080491362,6.1208,168.83,168.74,7.42]
[1717080494748,6.1208,168.83,168.72,60.0]
[1717080494955,6.1208,168.83,168.74,7.42]
[1717080497672,6.1208,168.83,168.72,60.0]
[1717080497863,6.1208,168.83,168.75,7.42]
[1717080502255,6.1208,168.83,168.73,45.0]
[1717080502456,6.1208,168.83,168.74,7.42]
[1717080502865,6.1208,168.83,168.7,60.0]
[1717080503061,6.1208,168.83,168.72,7.42]
[1717080503264,6.1208,168.83,168.73,7.42]
[1717080503761,6.1208,168.83,168.74,7.42]
[1717080505056,6.1208,168.83,168.75,7.42]
[1717080505670,6.1208,168.83,168.76,7.42]
[1717080505980,6.1208,168.83,168.75,60.0]
[1717080506279,6.1208,168.83,168.77,7.42]
[1717080507074,6.1208,168.83,168.76,45.0]
[1717080507368,6.1208,168.83,168.76,52.42]
[1717080509378,6.1208,168.83,168.73,60.0]
[1717080509581,6.1208,168.83,168.76,7.42]
[1717080509873,6.1208,168.83,168.74,45.0]
[1717080510783,6.1208,168.83,168.71,2.193]
[1717080510974,6.1208,168.83,168.7,60.0]
[1717080511161,6.1208,168.83,168.72,7.42]
[1717080512058,57.6002,168.82,168.69,62.1933]
[1717080512269,57.6002,168.82,168.69,2.1933]
[1717080512468,57.6002,168.82,168.71,7.42]
[1717080513064,12.6002,168.82,168.72,7.42]
[1717080513704,12.6002,168.82,168.69,62.1933]
[1717080513705,12.6002,168.82,168.73,7.42]
[1717080515165,12.6002,168.82,168.69,62.1933]
[1717080515373,12.6002,168.82,168.72,7.42]
[1717080517278,12.6002,168.82,168.73,7.42]
[1717080518268,12.6002,168.82,168.74,7.42]
[1717080519279,12.6002,168.82,168.71,60.0]
[1717080519480,12.6002,168.82,168.74,7.42]
[1717080521279,12.6002,168.82,168.7,45.0]
[1717080521479,12.6002,168.82,168.71,7.42]
[1717080522895,12.6002,168.82,168.72,7.42]
[1717080523285,6.1426,168.8,168.71,7.42]
[1717080523869,45.0,168.79,168.66,60.0]
[1717080524188,6.1426,168.8,168.69,7.42]
[1717080524767,6.1426,168.8,168.7,7.42]
[1717080524981,6.1426,168.8,168.71,7.42]
[1717080525487,6.1426,168.8,168.68,60.0]
[1717080525678,6.1426,168.8,168.71,7.42]
[1717080526982,6.1426,168.8,168.68,60.0]
[1717080527181,6.1426,168.8,168.71,7.42]
[1717080527584,6.1426,168.8,168.68,60.0]
[1717080527892,6.1426,168.8,168.71,7.42]
[1717080528188,6.1426,168.8,168.66,62.1937]
[1717080528402,6.1426,168.8,168.7,7.42]
[1717080529310,6.1426,168.8,168.67,45.0]
[1717080529473,6.1426,168.8,168.7,7.42]
[1717080530182,6.1426,168.8,168.71,7.42]
[1717080533000,6.1426,168.8,168.7,7.42]
[1717080533202,6.1426,168.8,168.67,45.0]
[1717080533497,6.1426,168.8,168.7,7.42]
[1717080533699,6.1426,168.8,168.67,45.0]
[1717080533873,6.1426,168.8,168.7,7.42]
[1717080534074,6.1426,168.8,168.71,7.42]
[1717080534701,6.6021,168.79,168.64,60.0]
[1717080535000,6.6021,168.79,168.66,60.0]
[1717080535180,6.6021,168.79,168.72,7.42]
[1717080535375,6.6021,168.79,168.73,7.42]
[1717080535796,6.6021,168.79,168.77,7.42]
[1717080535972,6.6021,168.81,168.78,7.42]
[1717080536881,12.6002,168.82,168.78,7.42]
[1717080537089,6.6021,168.81,168.78,7.42]
[1717080537602,6.6021,168.81,168.7,19.9631]
[1717080537603,19.2023,168.82,168.7,62.1931]
[1717080537802,19.2023,168.82,168.77,7.42]
[1717080538102,19.2023,168.82,168.76,7.42]
[1717080540105,19.2023,168.82,168.7,60.0]
[1717080540404,19.2023,168.82,168.72,29.68]
[1717080540900,19.2023,168.82,168.7,60.0]
[1717080541082,19.2023,168.82,168.75,7.42]
[1717080543807,19.2023,168.82,168.74,7.42]
[1717080544182,19.2023,168.82,168.66,60.0]
[1717080544396,19.2023,168.82,168.72,7.42]
[1717080544902,19.2023,168.82,168.73,7.42]
[1717080545812,19.2023,168.82,168.67,45.0]
[1717080545984,19.2023,168.82,168.73,7.42]
[1717080546501,36.91974464,168.82,168.73,7.42]
[1717080547290,36.91974464,168.82,168.67,45.0]
[1717080547506,36.91974464,168.82,168.73,7.42]
[1717080549205,43.09119817,168.82,168.73,7.42]
[1717080549598,43.09119817,168.82,168.67,45.0]
[1717080549799,43.09119817,168.82,168.67,47.1935]
[1717080550106,36.91974464,168.82,168.73,7.42]
[1717080550289,43.09147464,168.82,168.73,7.42]
[1717080551024,36.91974464,168.82,168.68,60.0]
[1717080551191,36.91974464,168.82,168.74,7.42]
[1717080552403,36.91974464,168.82,168.72,7.42]
[1717080552918,6.1354,168.8,168.65,2.1938]
[1717080553117,6.1354,168.8,168.7,7.42]
[1717080553626,6.5634,168.78,168.7,7.42]
[1717080554314,6.5634,168.78,168.66,2.1937]
[1717080554514,6.5634,168.78,168.72,7.42]
[1717080554815,19.2536,168.79,168.73,7.42]
[1717080555197,6.17161189,168.83,168.74,7.42]
[1717080555198,6.6534,168.78,168.74,7.42]
[1717080555511,6.6534,168.78,168.76,7.42]
[1717080555709,12.6002,168.83,168.77,7.42]
[1717080556020,6.2232,168.81,168.78,7.42]
[1717080556192,6.2232,168.82,168.76,7.42]
[1717080557117,6.2232,168.82,168.7,2.1932]
[1717080557323,6.2232,168.82,168.72,29.68]
[1717080557626,6.2232,168.82,168.74,7.42]
[1717080558135,6.2232,168.82,168.7,2.1932]
[1717080558315,6.2232,168.82,168.74,7.42]
[1717080558518,6.2232,168.82,168.7,2.1932]
[1717080558718,6.2232,168.82,168.74,7.42]
[1717080561020,11.14530681,168.82,168.68,2.1934]
[1717080561213,11.14530681,168.82,168.73,7.42]
[1717080561715,11.14530681,168.82,168.72,7.42]
[1717080562329,11.14530681,168.82,168.68,2.1934]
[1717080562514,11.14530681,168.82,168.71,7.42]
[1717080565120,11.14530681,168.82,168.72,7.42]
[1717080566238,11.14530681,168.82,168.68,45.0]
[1717080566443,11.14530681,168.82,168.71,7.42]
[1717080566959,6.4912,168.81,168.65,62.1938]
[1717080567117,6.4912,168.81,168.66,2.1937]
[1717080567441,6.4912,168.8,168.69,7.42]
[1717080568642,6.4912,168.8,168.7,7.42]
[1717080569017,6.4912,168.8,168.66,2.1937]
[1717080569236,6.4912,168.8,168.7,7.42]
[1717080570058,6.4912,168.8,168.66,45.0]
[1717080570353,6.4912,168.8,168.69,7.42]
[1717080571219,6.4912,168.8,168.66,45.0]
[1717080571436,6.4912,168.8,168.7,7.42]
[1717080572127,6.4912,168.8,168.68,60.0]
[1717080572318,6.4912,168.8,168.72,7.42]
[1717080572517,6.4912,168.8,168.73,7.42]
[1717080572727,6.4912,168.8,168.67,75.1914]
[1717080572930,6.4912,168.8,168.73,7.42]
[1717080575017,6.4912,168.8,168.67,75.1914]
[1717080575221,6.4912,168.8,168.74,7.42]
[1717080576030,6.4912,168.8,168.72,7.42]
[1717080577130,6.4912,168.8,168.71,7.42]
[1717080578433,6.4912,168.8,168.67,60.0]
[1717080578646,6.4912,168.8,168.71,7.42]
[1717080581328,6.4912,168.8,168.72,7.42]
[1717080582850,6.4912,168.8,168.73,7.42]
[1717080583032,6.4912,168.8,168.74,7.42]
[1717080583887,6.4912,168.8,168.75,7.42]
[1717080585827,6.4912,168.8,168.71,60.0]
[1717080586156,6.4912,168.8,168.72,7.42]
[1717080586342,6.4912,168.8,168.71,60.0]
[1717080586676,6.4912,168.8,168.69,60.0]
[1717080586832,6.4912,168.8,168.71,7.42]
[1717080587031,6.4912,168.8,168.72,7.42]
[1717080588173,6.4912,168.8,168.69,62.1933]
[1717080588372,6.4912,168.8,168.72,7.42]
[1717080589589,6.4912,168.8,168.73,7.42]
[1717080590074,6.4912,168.8,168.72,7.42]
[1717080590994,6.4912,168.8,168.7,2.1932]
[1717080591211,6.4912,168.8,168.72,7.42]
[1717080593074,6.4912,168.8,168.69,62.1933]
[1717080593274,6.4912,168.8,168.72,7.42]
[1717080595296,6.4912,168.8,168.69,62.1933]
[1717080595474,6.4912,168.8,168.72,7.42]
[1717080595674,6.4912,168.8,168.71,7.42]
[1717080600388,6.4912,168.8,168.68,2.1934]
[1717080600692,6.4912,168.8,168.66,60.0]
[1717080601298,6.4912,168.8,168.68,7.42]
[1717080601691,6.4912,168.8,168.69,7.42]
[1717080601899,6.4912,168.8,168.7,7.42]
[1717080602084,6.4912,168.8,168.71,7.42]
[1717080602691,6.4912,168.8,168.7,7.42]
[1717080603106,6.4912,168.8,168.69,7.42]
[1717080603895,6.4912,168.8,168.7,7.42]
[1717080604208,6.4912,168.8,168.71,7.42]
[1717080605406,6.4912,168.8,168.72,7.42]
[1717080606216,6.4912,168.8,168.71,7.42]
[1717080606510,6.4912,168.8,168.7,7.42]
[1717080606687,6.4912,168.8,168.69,7.42]
[1717080607097,6.4912,168.8,168.68,7.42]
[1717080607298,6.4912,168.8,168.65,2.1937]
[1717080607497,45.0,168.79,168.68,7.42]
[1717080608589,45.0,168.79,168.65,2.1937]
[1717080608790,45.0,168.79,168.68,7.42]
[1717080609711,45.0,168.79,168.69,7.42]
[1717080614790,6.4912,168.8,168.71,7.42]
[1717080614998,6.4912,168.8,168.72,7.42]
[1717080615207,6.4912,168.8,168.71,7.42]
[1717080615409,6.4912,168.8,168.72,7.42]
[1717080615911,6.4912,168.8,168.71,7.42]
[1717080616596,6.4912,168.8,168.67,62.1935]
[1717080616796,6.4912,168.8,168.7,7.42]
[1717080619730,6.4912,168.8,168.69,60.0]
[1717080619924,6.4912,168.8,168.72,7.42]
[1717080624137,6.4912,168.8,168.75,7.42]
[1717080624634,6.4912,168.8,168.73,105.0]
[1717080624795,6.4912,168.8,168.75,7.42]
[1717080625325,6.4912,168.8,168.74,7.42]
[1717080625836,6.4912,168.8,168.73,52.42]
[1717080627120,6.4912,168.8,168.71,60.0]
[1717080627539,6.4912,168.8,168.71,67.42]
[1717080627929,6.4912,168.8,168.71,7.42]
[1717080628253,6.4912,168.8,168.69,67.42]
[1717080628428,6.4912,168.8,168.69,60.0]
[1717080629428,6.4912,168.8,168.7,45.0]
[1717080630537,6.4912,168.8,168.7,52.42]
[1717080636060,6.4912,168.8,168.71,67.42]
[1717080636474,6.4912,168.8,168.72,45.0]
[1717080638444,6.4912,168.8,168.73,60.0]
[1717080639667,6.4912,168.8,168.72,52.42]
[1717080644367,6.4912,168.8,168.73,67.42]
[1717080644940,6.4912,168.8,168.74,52.42]
[1717080646851,6.4912,168.8,168.74,45.0]
[1717080649155,6.4912,168.8,168.74,52.42]
[1717080649679,6.4912,168.8,168.74,45.0]
[1717080652381,6.4912,168.8,168.74,52.42]
[1717080653454,6.4912,168.8,168.74,45.0]
[1717080658888,28.49145429,168.85,168.74,45.0]
[1717080660489,28.49145429,168.85,168.71,60.0]
[1717080660665,12.6002,168.84,168.71,60.0]
[1717080660863,6.5073,168.83,168.68,60.0]
[1717080661061,6.5073,168.83,168.68,67.42]
[1717080661283,6.5073,168.83,168.68,60.0]
[1717080661479,6.5073,168.83,168.68,67.42]
[1717080662071,6.5073,168.83,168.7,60.0]
[1717080663391,6.5073,168.83,168.69,7.42]
[1717080663590,6.5073,168.83,168.7,45.0]
[1717080664116,6.5073,168.83,168.68,60.0]
[1717080664312,6.5073,168.83,168.7,60.0]
[1717080664515,6.5073,168.83,168.7,67.42]
[1717080666224,24.22474464,168.83,168.71,7.42]
[1717080666928,24.22474464,168.83,168.72,60.0]
[1717080667109,24.22474464,168.83,168.73,45.0]
[1717080667110,6.5073,168.83,168.73,45.0]
[1717080667310,6.5073,168.83,168.74,60.0]
[1717080670509,6.5073,168.83,168.76,60.0]
[1717080671123,6.5073,168.83,168.75,52.42]
[1717080671324,6.5073,168.83,168.75,45.0]
[1717080672642,6.5073,168.83,168.74,60.0]
[1717080673336,6.5073,168.83,168.76,60.0]
[1717080674727,6.5073,168.83,168.77,45.0]
[1717080675441,6.5073,168.83,168.79,60.0]
[1717080676445,6.2575,168.87,168.79,60.0]
[1717080676740,6.2575,168.87,168.77,105.0]
[1717080678038,6.2575,168.87,168.79,60.0]
[1717080678218,6.2575,168.87,168.8,45.0]
[1717080679650,3.10368871,168.9,168.82,60.0]
[1717080679822,26.73300712,168.91,168.83,45.0]
[1717080680031,26.73300712,168.91,168.82,60.0]
[1717080680555,26.73300712,168.91,168.83,45.0]
[1717080680851,26.73300712,168.91,168.82,60.0]
[1717080681140,26.73300712,168.91,168.83,45.0]
[1717080681552,23.62931841,168.91,168.83,45.0]
[1717080681944,23.62931841,168.91,168.84,60.0]
[1717080681945,26.73300712,168.91,168.84,60.0]
[1717080682146,9.65918871,168.91,168.84,60.0]
[1717080682455,6.5555,168.91,168.85,45.0]
[1717080682755,6.5555,168.91,168.84,60.0]
[1717080683959,3.10368871,168.93,168.86,60.0]
[1717080684129,23.37931841,168.94,168.86,60.0]
[1717080684130,9.40918871,168.94,168.86,60.0]
[1717080685035,3.10368871,168.93,168.84,60.0]
[1717080685236,14.17715343,168.94,168.85,45.0]
[1717080685451,17.07381841,168.93,168.85,45.0]
[1717080687051,17.07381841,168.93,168.8,60.0]
[1717080687260,45.0,168.92,168.78,60.0]
[1717080687568,17.07381841,168.91,168.78,60.0]
[1717080687852,17.07381841,168.91,168.81,60.0]
[1717080688061,3.10368871,168.92,168.81,60.0]
[1717080688248,20.17647937,168.92,168.81,60.0]
[1717080688443,17.07279066,168.91,168.81,60.0]
[1717080688646,3.10368871,168.92,168.81,60.0]
[1717080689440,3.10368871,168.92,168.83,60.0]
[1717080689845,20.17674424,168.93,168.83,60.0]
[1717080690236,25.07306978,168.93,168.85,60.0]
[1717080690441,21.96938107,168.93,168.85,60.0]
[1717080690757,21.96938107,168.93,168.84,45.0]
[1717080692170,21.96938107,168.93,168.83,45.0]
[1717080694861,21.96938107,168.93,168.8,60.0]
[1717080695454,25.07306978,168.93,168.83,60.0]
[1717080695846,21.96938107,168.93,168.83,60.0]
[1717080696251,21.96938107,168.93,168.81,60.0]
[1717080696587,21.96938107,168.93,168.82,45.0]
[1717080697043,25.07306978,168.93,168.82,45.0]
[1717080700278,25.07306978,168.93,168.83,60.0]
[1717080700458,20.17674424,168.93,168.83,60.0]
[1717080702943,17.07305553,168.93,168.83,60.0]
[1717080703357,21.79851062,168.93,168.85,60.0]
[1717080703677,17.07305553,168.93,168.85,60.0]
[1717080703973,6.3055,168.94,168.86,45.0]
[1717080704168,6.3055,168.94,168.85,60.0]
[1717080704471,6.3055,168.94,168.83,60.0]
[1717080704765,6.3055,168.94,168.84,45.0]
[1717080705544,6.3055,168.94,168.83,60.0]
[1717080706281,6.3055,168.94,168.85,60.0]
[1717080706463,23.37684761,168.94,168.85,60.0]
[1717080707459,23.37684761,168.94,168.86,45.0]
[1717080708169,23.37684761,168.94,168.87,60.0]
[1717080708473,6.3055,168.94,168.87,60.0]
[1717080708676,6.3055,168.94,168.86,45.0]
[1717080709178,6.3055,168.94,168.85,45.0]
[1717080709480,6.3055,168.94,168.82,66.5857]
[1717080709681,6.3055,168.94,168.84,60.0]
[1717080710960,9.40918871,168.94,168.84,60.0]
[1717080714385,6.3055,168.94,168.85,45.0]
[1717080714675,23.37483434,168.94,168.85,45.0]
[1717080716780,23.37483434,168.94,168.87,60.0]
[1717080716954,6.3055,168.94,168.87,60.0]
[1717080717273,6.3055,168.94,168.85,105.0]
[1717080718753,6.3055,168.94,168.85,45.0]
[1717080718954,6.3055,168.94,168.83,60.0]
[1717080719365,9.40918871,168.94,168.83,60.0]
[1717080720188,9.40918871,168.94,168.79,60.0]
[1717080720380,48.10368871,168.93,168.79,60.0]
[1717080720563,17.069403,168.92,168.79,60.0]
[1717080721080,20.17309171,168.92,168.81,60.0]
[1717080722088,20.17309171,168.92,168.79,60.0]
[1717080722392,20.17309171,168.92,168.81,60.0]
[1717080723184,20.17309171,168.92,168.8,45.0]
[1717080723185,20.17309171,168.92,168.83,60.0]
[1717080723395,17.069403,168.92,168.84,45.0]
[1717080723696,3.10368871,168.93,168.84,45.0]
[1717080723988,20.17591312,168.93,168.84,45.0]
[1717080724186,20.17591312,168.93,168.86,60.0]
[1717080724491,17.07222441,168.93,168.86,60.0]
[1717080724688,17.07222441,168.92,168.86,60.0]
[1717080724888,9.40918871,168.94,168.86,60.0]
[1717080726873,9.40918871,168.94,168.84,105.0]
[1717080728295,9.40918871,168.94,168.8,60.0]
[1717080728296,20.82113335,168.93,168.8,60.0]
[1717080728473,3.10368871,168.91,168.8,60.0]
[1717080728803,6.4968,168.9,168.78,60.0]
[1717080730105,6.4968,168.9,168.79,45.0]
[1717080730479,19.097,168.9,168.76,60.0]
[1717080731002,17.07418846,168.89,168.76,60.0]
[1717080731371,19.097,168.9,168.76,60.0]
[1717080731691,45.0,168.89,168.76,60.0]
[1717080732301,45.0,168.89,168.74,62.1926]
[1717080733170,6.3606,168.88,168.74,62.1926]
[1717080733371,6.3606,168.88,168.76,60.0]
[1717080734382,6.3606,168.88,168.77,45.0]
[1717080734687,6.3606,168.88,168.76,60.0]
[1717080734872,6.3606,168.88,168.77,45.0]
[1717080736591,6.3606,168.88,168.73,9.6127]
[1717080736799,45.0,168.87,168.75,60.0]
[1717080739076,6.3606,168.88,168.77,60.0]
[1717080739796,6.3606,168.88,168.76,45.0]
[1717080740401,6.4242,168.86,168.67,8.7743]
[1717080740601,6.4242,168.84,168.71,60.0]
[1717080741197,6.4242,168.84,168.71,62.1931]
[1717080741490,6.4242,168.84,168.75,60.0]
[1717080742301,6.4242,168.84,168.76,45.0]
[1717080744399,6.4242,168.84,168.75,60.0]
[1717080745321,6.4242,168.84,168.73,60.0]
[1717080747904,6.4242,168.84,168.71,62.193]
[1717080748102,6.5777,168.82,168.69,62.1932]
[1717080748306,12.6002,168.81,168.7,2.1932]
[1717080749103,12.6002,168.81,168.72,60.0]
[1717080749996,6.3178,168.8,168.69,60.0]
[1717080750204,6.3178,168.8,168.7,45.0]
[1717080752595,6.3178,168.8,168.68,2.1934]
[1717080752830,6.3178,168.8,168.68,47.1934]
[1717080754404,6.3178,168.8,168.69,60.0]
[1717080756118,6.3178,168.8,168.68,47.1934]
[1717080756119,6.3178,168.8,168.68,45.0]
[1717080760206,6.3178,168.8,168.7,60.0]
[1717080760431,11.06019088,168.8,168.7,60.0]
[1717080762218,6.3178,168.8,168.7,60.0]
[1717080765831,6.3178,168.8,168.68,105.0]
[1717080766035,6.2747,168.78,168.65,60.0]
[1717080766210,6.2747,168.78,168.67,60.0]
[1717080766413,6.2747,168.78,168.72,60.0]
[1717080766613,6.2747,168.82,168.74,60.0]
[1717080766821,6.2747,168.82,168.74,62.1927]
[1717080767025,6.2747,168.82,168.74,60.0]
[1717080767234,6.2747,168.82,168.73,69.6128]
[1717080767425,6.2747,168.82,168.74,45.0]
[1717080768555,6.2747,168.82,168.73,67.42]
[1717080768911,6.2747,168.82,168.73,60.0]
[1717080770235,6.2747,168.82,168.75,60.0]
[1717080770948,7.42,168.78,168.75,60.0]
[1717080772545,6.2747,168.82,168.75,60.0]
[1717080775362,6.2747,168.82,168.73,62.1927]
[1717080778242,6.2747,168.82,168.71,62.193]
[1717080781261,6.2747,168.82,168.71,60.0]
[1717080781462,6.2747,168.82,168.71,62.193]
[1717080782454,6.2747,168.82,168.69,60.0]
[1717080782644,12.6002,168.81,168.7,45.0]
[1717080782842,12.6002,168.81,168.7,47.1932]
[1717080783052,12.6002,168.81,168.7,45.0]
[1717080783766,12.6002,168.81,168.7,47.1932]
[1717080784139,7.42,168.8,168.7,47.1932]
[1717080784939,7.42,168.8,168.7,45.0]
[1717080786048,7.42,168.8,168.69,69.6133]
[1717080787068,6.4277,168.79,168.69,60.0]
[1717080788666,6.4277,168.79,168.67,62.1935]
[1717080790972,6.4277,168.79,168.67,60.0]
[1717080791149,6.4277,168.79,168.65,60.0]
[1717080791490,6.5487,168.77,168.67,60.0]
[1717080796776,6.5487,168.77,168.67,62.1935]
[1717080796981,6.5487,168.77,168.68,2.1934]
[1717080797144,6.5487,168.77,168.67,62.1935]
[1717080798264,6.5487,168.77,168.67,60.0]
[1717080799247,6.5487,168.77,168.66,60.0]
[1717080799663,6.5487,168.77,168.69,62.1932]
[1717080799969,6.5487,168.77,168.7,2.1932]
[1717080800278,6.5487,168.77,168.66,4.3875]
[1717080800279,6.3027,168.75,168.65,62.1938]
[1717080801069,6.3027,168.75,168.65,69.6138]
[1717080801252,7.42,168.71,168.65,60.0]
[1717080801863,6.3027,168.75,168.65,60.0]
[1717080802066,7.42,168.7,168.65,60.0]
[1717080802286,6.3027,168.75,168.64,2.194]
[1717080802462,6.3027,168.75,168.64,47.194]
[1717080802769,6.3027,168.75,168.64,45.0]
[1717080804073,6.3027,168.75,168.64,52.42]
[1717080804379,6.6432,168.68,168.64,45.0]
[1717080804544,6.4224,168.75,168.64,60.0]
[1717080805076,6.4224,168.75,168.64,69.6139]
[1717080805400,7.42,168.7,168.64,60.0]
[1717080805748,6.4224,168.75,168.64,60.0]
[1717080807464,7.42,168.69,168.64,60.0]
[1717080808268,6.0012,168.75,168.64,60.0]
[1717080810469,6.0012,168.75,168.61,107.35132693]
[1717080810774,6.2746,168.67,168.58,169.56513086]
[1717080810983,6.2746,168.67,168.6,60.0]
[1717080814058,6.2746,168.67,168.58,169.56513086]
[1717080814379,6.2746,168.67,168.59,45.0]
[1717080814758,6.2746,168.67,168.6,60.0]
[1717080815655,6.2746,168.67,168.58,107.37043086]
[1717080815853,6.2746,168.67,168.58,114.79043086]
[1717080816075,6.2746,168.67,168.59,7.42]